Cogmind - Beta 13 @@@ ROGUE MODE // 2024.04.15 @ 05:12:46 Player: Fusha Result: Destroyed by Y-45 Defender with Heavy Assault Rifle Performance ------------- Evolutions (1) 500 Regions Visited (3) 600 Robots Destroyed (68) 340 Value Destroyed (1436) 1436 Prototype IDs (7) 140 Alien Tech Used (0) 0 Bonus (45) 45 TOTAL SCORE: 3061 Bonus ------- High Alert Combat Kills 39 Follower Combat Kills 50 Friendly Fire -44 Cogmind --------- Core Integrity 0/400 Matter 294/300 Energy 254/265 System Corruption 0% Temperature Cool (15) Movement Walking (120) Location -9/Storage Parts ------- > --- POWER (1) -------- Reinforced Ion Engine > --- PROPULSION (4) --- Aluminum Leg Improved Aluminum Leg Improved Aluminum Leg Improved Aluminum Leg > --- UTILITY (2) ------ Heat Sink Heat Sink > --- WEAPON (2) ------- Beamcaster Improved Assault Rifle > --- INVENTORY (5) ---- Light Angular Momentum Engine Aluminum Leg Aluminum Leg Small Laser Mini Grenade Launcher Peak State ------------ > --- POWER ------------ Ion Engine > --- PROPULSION ------- Improved Flight Unit Improved Flight Unit Improved Flight Unit Improved Flight Unit > --- UTILITY ---------- Heat Sink Large Battery > --- WEAPON ----------- Improved Medium Laser Beamcaster > --- INVENTORY -------- Ion Engine Improved Flight Unit Small Laser [Rating: 23] Favorites ----------- Power Improved Ion Engine Engine Improved Ion Engine Propulsion Aluminum Leg Leg Aluminum Leg Wheel Compact Wheel Flight Unit Improved Flight Unit Utility Heat Sink Device Heat Sink Storage Medium Storage Unit Processor Targeting Computer Weapon Medium Laser Energy Gun Medium Laser Ballistic Gun Light Assault Rifle Build | -11 -10 -9 -9 ------- Run | Yrd Mat Mat Sto Slots Evolved 2 | . . 2 . Power . | . . . . Propulsion 2 | . . 2 . Utility . | . . . . Weapon . | . . . . Parts Attached 65 | 7 4 12 42 Power 11 | 1 1 2 7 Engine 11 | 1 1 2 7 Core . | . . . . Reactor . | . . . . Propulsion 23 | 2 1 4 16 Treads . | . . . . Leg 14 | 2 1 4 7 Wheel 1 | . . . 1 Hover . | . . . . Flight 8 | . . . 8 Utility 12 | 2 1 4 5 Device 7 | 1 . 3 3 Storage 4 | 1 . 1 2 Processor 1 | . 1 . . Hackware . | . . . . Protection . | . . . . Artifact . | . . . . Weapon 19 | 2 1 2 14 Energy Gun 16 | 1 1 2 12 Energy Cannon . | . . . . Ballistic Gun 3 | 1 . . 2 Ballistic Cannon . | . . . . Launcher . | . . . . Special Weapon . | . . . . Impact Weapon . | . . . . Slashing Weapon . | . . . . Piercing Weapon . | . . . . Special Melee Weapon . | . . . . Unidentified Prototypes 4 | . . 1 3 Parts Lost 15 | . 1 3 11 Power 5 | . 1 . 4 Propulsion 4 | . . 2 2 Utility 1 | . . 1 . Weapon 5 | . . . 5 Highest Loss Streak 4 | . 1 2 4 To Critical Strikes . | . . . . Average Slot Usage (%) 90 | . 100 84 91 Engine 11 | . 14 11 10 Leg 24 | . 28 30 18 Flight 7 | . . . 15 Device 10 | . . 8 14 Storage 9 | . 14 11 7 Processor 2 | . 13 1 . Energy Gun 20 | . 14 20 21 Ballistic Gun 2 | . 14 1 . Naked Turns . | . . . . Heaviest Build 24 | 12 12 24 23 Greatest Support 49 | 20 20 40 49 Greatest Overweight (x) 4 | . . 1 4 Average Overweight (x) . | . . . . Largest Inventory Capacity 10 | 8 8 10 10 Average Capacity 7 | 6 8 9 6 Most Carried 10 | 2 8 7 10 Average Carried 5 | 1 4 6 5 Final Capacity 10 | 8 8 10 5 Final Carried 7 | 1 7 7 5 Class Distribution -------------------- 57% | Scavenger-Mutant 29% | Mutant 8% | Scavenger-Sprinter 4% | Sprinter Dominant Class ---------------- Mutant | -10/Materials Scavenger-Mutant | -9/Materials Scavenger-Mutant | -9/Storage Resources | -11 -10 -9 -9 ----------- Run | Yrd Mat Mat Sto Matter Collected 861 | 272 71 113 405 Remotely 23 | 23 . . . Salvage Created 2894 | 77 333 755 1729 Parts 142 | 2 15 34 91 Haulers Intercepted 6 | . 1 1 4 Recyclers Shooed 7 | . 2 . 5 Parts Field Recycled . | . . . . Retrieved Matter . | . . . . Parts Self-Destructed . | . . . . Prevented . | . . . . Kills | -11 -10 -9 -9 ------- Run | Yrd Mat Mat Sto Combat Hostiles Destroyed 40 | . 5 6 29 Guns 38 | . 5 6 27 Classes Destroyed 13 | 1 3 5 4 Worker 1 | . . 1 . Builder 3 | . . 1 2 Tunneler 1 | . . 1 . Hauler 6 | . 1 1 4 Recycler 11 | 1 2 4 4 Mechanic 4 | . . 1 3 Operator 1 | . . . 1 Watcher 1 | . . . 1 Swarmer 10 | . 3 . 7 Grunt 19 | . 2 3 14 Brawler 1 | . . . 1 Protector 1 | . . . 1 Sentry 9 | . . 3 6 Best Kill Streak 6 | 1 3 3 6 Combat Bots Only 6 | . 3 2 6 Max Kills in Single Turn 2 | 1 1 2 2 Gunslinging . | . . . . Exploded . | . . . . Melee . | . . . . Uniques/NPCs Destroyed . | . . . . Combat | -11 -10 -9 -9 -------- Run | Yrd Mat Mat Sto Hostile Shots Fired 240 | . 31 51 158 Missed 61 | . 3 19 39 Damage Taken 2191 | . 258 460 1473 Core 428 | . 18 54 356 Absorbed by Shields . | . . . . Regen/Repaired (Parts) 138 | . . 138 . Core Remaining (%) 96 | 100 92 . . Volleys Fired 208 | 2 36 50 120 Largest 2 | 2 2 2 2 Hottest 131 | 70 70 106 131 Shots Fired 416 | 4 72 100 240 Gun 416 | 4 72 100 240 Cannon . | . . . . Launcher . | . . . . Special . | . . . . Kinetic 43 | 2 36 3 2 Thermal 360 | 2 36 97 225 Explosive . | . . . . Electromagnetic 13 | . . . 13 Robot Hit Streak 24 | 3 8 9 24 Robot Miss Streak 6 | 1 4 4 6 Penetration Max . | . . . . Secondary Targets 5 | . 1 2 2 Max Gunslinging Chain 1 | . 1 1 1 Shots Hit Robots 256 | 3 38 66 149 Core Hits 105 | 2 13 25 65 Critical Kills . | . . . . Critical Parts Destroyed . | . . . . Critical Strikes 21 | . . 8 13 Burn 21 | . . 8 13 Melee Attacks . | . . . . Impact . | . . . . Slashing . | . . . . Piercing . | . . . . Sneak Attacks . | . . . . Combat Hostiles . | . . . . Follow-up Attacks . | . . . . Damage Inflicted 4092 | 34 391 1030 2637 Guns 4025 | 34 391 1027 2573 Cannons . | . . . . Explosions 55 | . . . 55 Melee . | . . . . Ramming 12 | . . 3 9 Kinetic 216 | 10 166 23 17 Thermal 3653 | 24 225 1004 2400 Explosive . | . . . . Electromagnetic 211 | . . . 211 Impact . | . . . . Slashing . | . . . . Piercing . | . . . . Highest Corruption . | . . . . Average Corruption . | . . . . Corruption Purged . | . . . . Corruption Blocked . | . . . . Overload Shots . | . . . . Overflow Damage . | . . . . Projectiles . | . . . . Explosions . | . . . . Melee . | . . . . Knockbacks . | . . . . Impact . | . . . . Kinetic . | . . . . Secondary . | . . . . Self-Inflicted Damage 35 | . . . 35 Shots 1 | . . . 1 Rammed 1 | . . . 1 Targets Rammed 4 | . . 2 2 Kicked 3 | . . 2 1 Crushed . | . . . . Highest Temperature 370 | 40 200 195 370 Average Temperature 88 | 20 77 47 102 Received Heat Transfer 843 | . 54 189 600 Effects 2 | . . . 2 Energy Bleed 1 | . . . 1 Damage (minor) 1 | . . . 1 Siege Activations . | . . . . Robots Corrupted . | . . . . Combat Hostiles . | . . . . Parts Fried . | . . . . Impact Corruptions . | . . . . Robots Melted 2 | . . . 2 Combat Hostiles 2 | . . . 2 Parts Melted 22 | . 1 7 14 Heat Transferred 10342 | 74 666 3108 6494 Parts Sabotaged . | . . . . Parts Stolen . | . . . . Parts Stripped . | . . . . Power Chain Reactions 1 | . . . 1 Alert | -11 -10 -9 -9 ------- Run | Yrd Mat Mat Sto Peak Influence 461 | 5 196 218 461 Initial 82 | . 3 82 . Average 190 | 1 131 119 267 Maximum Alert Level 2 | . . 1 2 Low Security (%) 62 | 100 100 93 29 Level 1 30 | . . 6 56 Level 2 6 | . . . 14 Level 3 . | . . . . Level 4 . | . . . . Level 5 . | . . . . High Security . | . . . . Max Security . | . . . . Squads Dispatched 9 | . 1 1 7 Investigation 3 | . . . 3 Extermination . | . . . . Reinforcement 4 | . 1 1 2 Assault 2 | . . . 2 Garrison . | . . . . Intercept . | . . . . Searches Triggered . | . . . . Construction Impeded . | . . . . Haulers Reinforced . | . . . . Active Scanning Responses . | . . . . Cargo Convoy Interrupts . | . . . . Stealth | -11 -10 -9 -9 --------- Run | Yrd Mat Mat Sto Distress Signals 4 | . 1 . 3 Communications Jammed . | . . . . Distress Signals . | . . . . Times Spotted 73 | . 9 19 45 Peak Tracking Total 8 | . 4 5 8 Tactical Retreats 1 | . . . 1 Traps | -11 -10 -9 -9 ------- Run | Yrd Mat Mat Sto Traps Triggered 1 | . . . 1 Indirectly . | . . . . Trap Hack Attempts . | . . . . Triggered . | . . . . Disarmed . | . . . . Reprogrammed . | . . . . Reused . | . . . . Traps Extracted . | . . . . Installed . | . . . . Triggered . | . . . . Machines | -11 -10 -9 -9 ---------- Run | Yrd Mat Mat Sto Machines Disabled . | . . . . Max in Single Turn . | . . . . Machines Repaired . | . . . . Machines Dismantled . | . . . . Machines Sabotaged . | . . . . Overloaded Fab Kills . | . . . . Hacking | -11 -10 -9 -9 --------- Run | Yrd Mat Mat Sto Machines Accessed 12 | . 2 6 4 Terminals 9 | . 1 4 4 Fabricators . | . . . . Repair Stations 2 | . . 2 . Recycling Units 1 | . 1 . . Scanalyzers . | . . . . Garrison Access . | . . . . Total Hacks 36 | . 3 17 16 Successful 14 | . 2 7 5 Failed 22 | . 1 10 11 Catastrophic 4 | . 1 1 2 Database Lockouts . | . . . . Manual 8 | . 1 5 2 Terminals 30 | . 2 12 16 Fabricators . | . . . . Repair Stations 5 | . . 5 . Recycling Units 1 | . 1 . . Scanalyzers . | . . . . Garrison Access . | . . . . Terminal Hacks 9 | . 1 3 5 Prototype ID Bank 1 | . . 1 . Open Door 1 | . . . 1 Terminal Index 1 | . . . 1 Alert Level 2 | . . 1 1 Locate Traps 3 | . 1 1 1 Zone Layout 1 | . . . 1 Fabricator Hacks . | . . . . Repair Station Hacks 4 | . . 4 . Scan Component 2 | . . 2 . Repair 2 | . . 2 . Recycling Unit Hacks 1 | . 1 . . Retrieve Components 1 | . 1 . . Scanalyzer . | . . . . Garrison Access Hacks . | . . . . Unauthorized Hacks . | . . . . Terminals . | . . . . Fabricators . | . . . . Repair Stations . | . . . . Recycling Units . | . . . . Scanalyzers . | . . . . Garrison Access . | . . . . Data Cores Recovered 1 | . . . 1 Used . | . . . . Hacking Detections 11 | . 2 5 4 Full Trace Events 2 | . . . 2 Feedback Events . | . . . . Feedback Blocked . | . . . . Robot Schematics Acquired . | . . . . Robots Built . | . . . . Authchips . | . . . . Time . | . . . . Total Robot Build Rating . | . . . . Part Schematics Acquired . | . . . . Parts Built . | . . . . Authchips . | . . . . Time . | . . . . Total Part Build Rating . | . . . . Parts Repaired 2 | . . 2 . Time 52 | . . 52 . Parts Recycled . | . . . . Recycled Matter . | . . . . Retrieved Matter . | . . . . Retrieved Components 3 | . 3 . . Parts Scanalyzed . | . . . . Part Schematics Acquired . | . . . . Parts Damaged . | . . . . Bothacking | -11 -10 -9 -9 ------------ Run | Yrd Mat Mat Sto Used RIF Installer . | . . . . Robots Hacked . | . . . . Non-combat . | . . . . Combat . | . . . . Robot Hacks Applied . | . . . . Relay Couplers Released . | . . . . Fabnet Peak Effective % . | . . . . Robots Rewired . | . . . . Allies Hacked . | . . . . Hacks Repelled . | . . . . Allies | -11 -10 -9 -9 -------- Run | Yrd Mat Mat Sto Total Allies 2 | . . . 2 Largest Group 2 | . . . 2 Highest-Rated Group 62 | . . . 62 Highest-Rated Ally 31 | . . . 31 Total Orders . | . . . . Ally Attacks 18 | . . . 18 Total Damage 294 | . . . 294 Kills 2 | . . . 2 Allies Corrupted . | . . . . Allies Melted . | . . . . Intel | -11 -10 -9 -9 ------- Run | Yrd Mat Mat Sto Robot Analysis Total . | . . . . Derelict Logs Recovered . | . . . . Drone Launches . | . . . . Drone Recoveries . | . . . . Exploration | -11 -10 -9 -9 ------------- Run | Yrd Mat Mat Sto Turns Passed 2415 | 56 298 880 1181 Spaces Moved 1304 | 35 152 428 689 Core 4 | 4 . . . Treads . | . . . . Legs 866 | 31 152 428 255 Wheels 120 | . . . 120 Hover . | . . . . Flight 314 | . . . 314 Fastest Speed 31 | 50 120 120 31 Average Speed 110 | 112 120 146 85 Slowest Speed 320 | 120 120 190 320 Overloaded Moves . | . . . . Propulsion Burnouts . | . . . . Robots Hopped . | . . . . Cave-ins Triggered . | . . . . Exploration Rate (%) 24 | 4 19 28 48 Regions Visited 3 Branch Regions 1 Pre-discovered Areas . | . . . . Known Exits Taken . | . . . . Unknown Exits Taken 3 | 1 1 1 . Scrap Searched . | . . . . Spaces Dug . | . . . . Terrain Destroyed 2 | . . . 2 Melee . | . . . . Projectile . | . . . . AOE 2 | . . . 2 Terrain Rammed . | . . . . Walls Destroyed . | . . . . Machines Disabled . | . . . . Actions | -11 -10 -9 -9 --------- Run | Yrd Mat Mat Sto Total 1865 | 45 202 576 1042 Wait 221 | . 3 76 142 Move 1301 | 34 151 427 689 Hop . | . . . . Pick Up 26 | 2 7 3 14 Fast Attach 32 | 6 . 7 19 Attach 13 | 1 2 1 9 Detach . | . . . . Swap 20 | . 2 4 14 Drop 40 | . 1 6 33 Fire 208 | 2 36 50 120 Melee . | . . . . Ram 1 | . . . 1 Kick 3 | . . 2 1 Crush . | . . . . Escape Stasis . | . . . . Rewire . | . . . . Trap . | . . . . Miscellaneous . | . . . . Route ------- -11/Scrapyard -10/Materials -9/Materials (discovered 2 exits: [*Min] / *Sto) -9/Storage History --------- Turn | Location | Event 4 | -11/Scrapyard | Discovered new exit (range 15) 57 | -11/Scrapyard | Entered Materials 311 | -10/Materials | Build established: Mutant 313 | -10/Materials | Discovered new exit (range 16) 355 | -10/Materials | Entered another Materials area 355 | -9/Materials | Evolved 2 slots: Propulsion x2 536 | -9/Materials | Repaired Aluminum Leg 757 | -9/Materials | Discovered new exit (range 12) 1141 | -9/Materials | Discovered new exit (range 15) 1195 | -9/Materials | Repaired Aluminum Leg 1235 | -9/Materials | Entered Storage 1506 | -9/Storage | Build established: Scavenger-Mutant 1712 | -9/Storage | Core integrity fell below 50% 1781 | -9/Storage | Lost 4 parts (1p3w) 1857 | -9/Storage | Met a pair of Derelict thieves 1947 | -9/Storage | Core integrity fell below 20% 2416 | -9/Storage | Destroyed by Y-45 Defender with Heavy Assault Rifle Last Messages --------------- 02335_ U-05 Engineer lays Concrete. 02337_ G-34 Mercenary destroyed. 02337_ U-05 Engineer lays Concrete. 02340_ Critical hit (Burn: +37). 02340_ U-05 Engineer lays Concrete. 02345_ Y-45 Defender destroyed. 02346_ U-05 Engineer lays Concrete. 02348_ U-05 Engineer builds a Wall. 02348_ U-05 Engineer destroyed. 02349_ U-05 Engineer lays Concrete. 02351_ U-05 Engineer builds a Door. 02354_ Dropped Imp. EM Shotgun. 02356_ K-01 Serf collects debris. 02356_ Dropped Imp. Flight Unit. 02357_ Acquired Mni. Grenade Launcher. 02359_ Acquired Imp. Assault Rifle. 02361_ Dropped Heat Sink. 02364_ Acquired 40 matter. 02364_ K-01 Serf collects debris. 02413_ Critical hit (Burn: +37). Map ----- +----------------------------------------------------+ | ## """ """ #?????????????????????????????????????? | | # """ """ #?????????????????????????????????????? | | # """ """ ##????????????????????????????????????? | | + """ """ #????????????????????????????????????? | | # """ """ ##????????????????????????????????????? | | ## #?????????????????????????????????????? | | ?# = #?????????????????????????????????????? | | ?###########?????????????????????????????????????? | | ????# #????????????????????????????????????????? | | ##### #????????????????????????????????????????? | | [=# #????????????????????????????????????????? | | ==!!#![ #????????????????????????????????????????? | | !! #%= #????????????????????????????????????????? | | !%[[+%=!#????????????????????????????????????????? | | |![]=%=[#####+###################+#+#????????????? | | =!!#[ ^ ???????????? | | *!# ???????????? | | ! # ???????????? | | ##### ############+#######??????????????????? | | ????# #??????# #????????????????????? | | ????# #??????# """ """ #????????????????????? | | ???"" #??????# """ """ #????????????????????? | | ??"Y #??????# """ """ #????????????????????? | | ??""" #??????# """ """ #????????????????????? | | ??### #??????# """ """ #????????????????????? | | ????# #??????# Y@ #????????????????????? | | ????#^ ####??????# / #????????????????????? | | ????# ^#?????????###### ####????????????????????? | | ????##+##??????????????##????????????????????????? | | ?????????????????????????????????????????????????? | | ?????????????????????????????????????????????????? | | ?????????????????????????????????????????????????? | | ?????????????????????????????????????????????????? | | ?????????????????????????????????????????????????? | | ?????????????????????????????????????????????????? | | ?????????????????????????????????????????????????? | | ?????????????????????????????????????????????????? | | ?????????????????????????????????????????????????? | | ?????????????????????????????????????????????????? | | ?????????????????????????????????????????????????? | | ?????????????????????????????????????????????????? | | ?????????????????????????????????????????????????? | | | | | | | | | | | | | | | | | +----------------------------------------------------+ Best States ------------- Heat Dissipation 50 Energy Generation 12 Energy Capacity 465 Matter Stores 300 Matter Capacity 300 Sight Range 16 Terrain Scan Density 10 Evasion (%) 63 Targeting Accuracy 5 Authchip Count 3 Item Schematics ----------------- None Robot Schematics ------------------ None Fabricated ------------ Nothing Alien Tech Used ----------------- None Achievements -------------- None Challenges ------------ None Game ------ Seed MetaTimingCannon Manual? 0 Play Time 00:36:39 Cumulative 59.8 hours Start 2024.04.14 @ 14:36:00 End 2024.04.15 @ 05:12:46 Sessions 2 Manual Loads 0 Difficulty Rogue Special Mode None Game No. 27 Rogue 27 Adventurer 0 Explorer 0 Win Type - Total 0 Types 0/0/0/0/0/0/0/0/0 Lore% 24 Gallery% 41 Achievement% 31 Wizard Run 0 Options --------- Layout 0 ASCII 1 Keyboard 0 Movement Mouse Keybinds 0 Fullscreen 2 Font 18/Terminus Map View 76x50 Zoom Use 0% Tactical HUD 1 Map Filters NONE Filters NONE Steam 1 RUN: 21b85c7c-67a1-4588-ab88-1ef00cad05bb